fUSD/lending_fUSD_20241203
["ID","MTS","AMOUNT","RATE_DAILY","PERIOD"]
[344052763,1733250206130,-500.0,0.00025273,120]
[344052764,1733250206181,-500.0,0.00025273,120]
[344052765,1733250206234,-1236.89,0.00025273,120]
[344052766,1733250206286,-500.0,0.00025273,120]
[344052767,1733250206339,-946.47,0.00025273,120]
[344052768,1733250206393,-516.6,0.00025273,120]
[344052769,1733250206446,-3956.91,0.00025273,120]
[344052770,1733250206498,-500.0,0.00025273,120]
[344052771,1733250206548,-801.26,0.00025273,120]
[344052772,1733250206598,-2023.86,0.00025273,120]
[344052773,1733250206650,-624.41,0.00025273,120]
[344052774,1733250206701,-1196.41,0.00025273,120]
[344052775,1733250206753,-500.0,0.00025273,90]
[344052776,1733250206805,-500.0,0.00025273,120]
[344052777,1733250206857,-500.0,0.00025273,120]
[344052778,1733250206907,-2474.85,0.00025273,120]
[344052779,1733250206965,-500.0,0.00025273,120]
[344052780,1733250207019,-632.04,0.00025273,120]
[344052781,1733250207073,-856.08,0.00025273,120]
[344052782,1733250207124,-500.0,0.00025273,120]
[344052783,1733250207178,-1555.93,0.00025273,120]
[344052784,1733250207233,-500.0,0.00025273,120]
[344052785,1733250207288,-1156.79,0.00025273,120]
[344052786,1733250207343,-961.38,0.00025273,120]
[344052787,1733250207396,-4258.09,0.00025273,120]
[344052788,1733250207452,-500.0,0.00025273,120]
[344052789,1733250207517,-500.0,0.00025273,120]
[344052790,1733250207568,-500.0,0.00025273,120]
[344052791,1733250207619,-500.0,0.00025273,120]
[344052792,1733250207669,-1292.42,0.00025273,120]
[344052793,1733250207720,-1291.95,0.00025273,120]
[344052794,1733250207768,-1884.96,0.00025273,120]
[344052795,1733250207821,-1073.37,0.00025273,120]
[344052796,1733250207873,-908.4,0.00025273,120]
[344052797,1733250207928,-500.0,0.00025273,120]
[344052798,1733250207981,-1156.91,0.00025273,120]
[344052799,1733250208033,-515.4,0.00025273,120]
[344052800,1733250208091,-2876.05,0.00025273,30]
[344052801,1733250208145,-2084.66,0.00025273,120]
[344052802,1733250208199,-863.63,0.00025273,120]
[344052803,1733250208252,-500.0,0.00025273,120]
[344052804,1733250208305,-500.0,0.00025273,120]
[344052805,1733250208359,-500.0,0.00025273,120]
[344052806,1733250208412,-1417.34,0.00025273,120]
[344052807,1733250208465,-1882.26,0.00025273,120]
[344052808,1733250208519,-500.0,0.00025273,120]
[344052809,1733250208573,-639.6,0.00025273,120]
[344052810,1733250208626,-500.0,0.00025273,120]
[344052811,1733250208679,-500.0,0.00025273,120]
[344052812,1733250208735,-2725.07,0.00025273,120]
[344052813,1733250208789,-500.0,0.00025273,120]
[344052814,1733250208844,-150.0,0.00025273,120]
[344052815,1733250208898,-1246.97,0.00025273,120]
[344052816,1733250208954,-1074.93,0.00025273,120]
[344052817,1733250209009,-500.0,0.00025273,120]
[344052818,1733250209063,-660.27,0.00025273,120]
[344052819,1733250209115,-585.64,0.00025273,120]
[344052820,1733250209170,-1390.26,0.00025273,120]
[344052821,1733250209226,-1962.55,0.00025273,120]
[344052822,1733250209279,-500.0,0.00025273,120]
[344052823,1733250209332,-500.0,0.00025273,120]
[344052824,1733250209386,-1374.01,0.00025273,120]
[344052825,1733250209443,-500.0,0.00025273,120]
[344052826,1733250209498,-1819.63,0.00025273,120]
[344052827,1733250209554,-1709.9,0.00025273,120]
[344052828,1733250209610,-500.0,0.00025273,120]
[344052829,1733250209663,-500.0,0.00025273,120]
[344052830,1733250209715,-500.0,0.00025273,120]
[344052831,1733250209767,-1584.84,0.00025273,120]
[344052832,1733250209820,-500.0,0.00025273,120]
[344052833,1733250209873,-1245.11,0.00025273,120]
[344052834,1733250209941,-780.86,0.00025273,120]
[344052835,1733250209997,-500.0,0.00025273,120]
[344052836,1733250210053,-1419.97,0.00025273,120]
[344052837,1733250210107,-500.0,0.00025273,120]
[344052838,1733250210164,-582.89,0.00025273,120]
[344052839,1733250210219,-541.07,0.00025273,120]
[344052840,1733250210271,-500.0,0.00025273,120]
[344052841,1733250210326,-666.46,0.00025273,120]
[344052842,1733250210380,-2745.29,0.00025273,120]
[344052843,1733250210438,-1218.73,0.00025273,120]
[344052844,1733250210490,-983.22,0.00025273,120]
[344052845,1733250210544,-500.0,0.00025273,120]
[344052846,1733250210989,-1877.64,0.00025273,120]
[344052847,1733250211042,-500.0,0.00025273,120]
[344052848,1733250211093,-1217.33,0.00025273,120]
[344052849,1733250211147,-500.0,0.00025273,120]
[344052850,1733250211201,-500.0,0.00025273,120]
[344052851,1733250211253,-500.0,0.00025273,120]
[344052852,1733250211305,-1678.65,0.00025273,120]
[344052853,1733250211357,-500.0,0.00025273,120]
[344052854,1733250211410,-601.07648458,0.00025273,120]
[344052855,1733250211468,-500.0,0.00025273,120]
[344052856,1733250211522,-1531.9,0.00025273,120]
[344052857,1733250211573,-500.0,0.00025273,120]
[344052858,1733250211625,-500.0,0.00025273,120]
[344052859,1733250211677,-729.16,0.00025273,120]
[344052860,1733250211729,-546.95,0.00025273,120]
[344052861,1733250211780,-500.0,0.00025273,120]
[344052862,1733250211831,-980.03,0.00025273,120]
[344052863,1733250211882,-594.55376091,0.00025273,120]
[344052864,1733250211935,-828.46,0.00025273,120]
[344052865,1733250211987,-500.0,0.00025273,120]
[344052866,1733250212039,-646.40290655,0.00025273,120]
[344052867,1733250212092,-523.23,0.00025273,120]
[344052868,1733250212144,-500.0,0.00025273,120]
[344052869,1733250212196,-2701.18,0.00025273,120]
[344052870,1733250212248,-500.0,0.00025273,120]
[344052871,1733250212300,-500.0,0.00025273,120]
[344052872,1733250212350,-500.0,0.00025273,120]
[344052873,1733250212405,-500.0,0.00025273,120]
[344052874,1733250212458,-1423.07,0.00025273,120]
[344052875,1733250212510,-1511.21,0.00025273,120]
[344052876,1733250212561,-1002.53,0.00025273,120]
[344052877,1733250212617,-500.0,0.00025273,120]
[344052878,1733250212670,-500.0,0.00025273,120]
[344052879,1733250212719,-721.99,0.00025273,120]
[344052880,1733250212769,-676.65,0.00025273,120]
[344052881,1733250212817,-500.0,0.00025273,120]
[344052882,1733250212867,-500.0,0.00025273,120]
[344052883,1733250212919,-1548.73,0.00025273,120]
[344052884,1733250212968,-963.32,0.00025273,120]
[344052885,1733250213019,-535.2,0.00025273,120]
[344052886,1733250213071,-500.0,0.00025273,120]
[344052887,1733250213128,-500.0,0.00025273,120]
[344052888,1733250213184,-958.89,0.00025273,120]
[344052889,1733250213241,-500.0,0.00025273,120]
[344052890,1733250213297,-1828.28,0.00025273,120]
[344052891,1733250213353,-1650.82,0.00025273,120]
[344052892,1733250213409,-1493.99,0.00025273,120]
[344052893,1733250213464,-933.64,0.00025273,120]
[344052894,1733250213517,-500.0,0.00025273,120]
[344052895,1733250213570,-500.0,0.00025273,120]
[344052896,1733250213637,-689.22,0.00025273,120]
[344052897,1733250213697,-1030.53,0.00025273,120]
[344052898,1733250213750,-980.38,0.00025273,120]
[344052899,1733250213804,-500.0,0.00025273,120]
[344052900,1733250213858,-500.0,0.00025273,120]
[344052901,1733250213913,-669.85,0.00025273,120]
[344052902,1733250213970,-658.87,0.00025273,120]
[344052903,1733250214020,-582.79,0.00025273,120]
[344052904,1733250214075,-1144.5,0.00025273,120]
[344052905,1733250214127,-1785.36,0.00025273,120]
[344052906,1733250214180,-2079.58,0.00025273,120]
[344052907,1733250214231,-983.76,0.00025273,120]
[344052908,1733250214292,-504.23296022,0.00025273,120]
[344052909,1733250214346,-640.49,0.00025273,120]
[344052910,1733250214405,-936.35,0.00025273,120]
[344052911,1733250214460,-500.0,0.00025273,120]
[344052912,1733250214514,-1158.52,0.00025273,120]
[344052913,1733250214565,-500.0,0.00025273,120]
[344052914,1733250214617,-1371.87,0.00025273,120]
[344052915,1733250214669,-684.82,0.00025273,120]
[344052916,1733250214722,-946.95,0.00025273,120]
[344052917,1733250214774,-500.0,0.00025273,120]
[344052918,1733250214827,-1537.01,0.00025273,120]
[344052919,1733250214878,-1358.84,0.00025273,120]
[344052920,1733250214930,-1315.21,0.00025273,120]
[344052921,1733250214981,-2432.27,0.00025273,120]
[344052922,1733250215034,-790.23,0.00025273,120]
[344052923,1733250215086,-500.0,0.00025273,120]
[344052924,1733250215138,-983.8,0.00025273,120]
[344052925,1733250215190,-1239.28,0.00025273,120]
[344052926,1733250215241,-500.0,0.00025273,120]
[344052927,1733250215293,-500.0,0.00025273,120]
[344052928,1733250215343,-500.0,0.00025273,120]
[344052929,1733250215393,-500.0,0.00025273,120]
[344052930,1733250215446,-966.33,0.00025273,120]
[344052931,1733250215497,-1833.89,0.00025273,120]
[344052932,1733250215550,-500.0,0.00025273,120]
[344052933,1733250215600,-500.0,0.00025273,120]
[344052934,1733250215654,-930.4,0.00025273,120]
[344052935,1733250215703,-500.0,0.00025273,120]
[344052936,1733250215753,-776.93,0.00025273,120]
[344052937,1733250215801,-2016.67,0.00025273,120]
[344052938,1733250215852,-500.0,0.00025273,120]
[344052939,1733250215908,-500.0,0.00025273,120]
[344052940,1733250216353,-669.1,0.00025273,120]
[344052941,1733250216406,-2147.03,0.00025273,120]
[344052942,1733250216462,-500.0,0.00025273,120]
[344052943,1733250216516,-1049.79,0.00025273,120]
[344052944,1733250216572,-500.0,0.00025273,120]
[344052945,1733250216628,-1652.75,0.00025273,120]
[344052946,1733250216681,-500.0,0.00025273,120]
[344052947,1733250216736,-3617.4,0.00025273,120]
[344052948,1733250216788,-500.0,0.00025273,120]
[344052949,1733250216840,-847.77,0.00025273,120]
[344052950,1733250216893,-500.0,0.00025273,120]
[344052951,1733250216948,-500.0,0.00025273,120]
[344052952,1733250217004,-1992.95,0.00025273,120]
[344052953,1733250217059,-654.68,0.00025273,120]
[344052954,1733250217116,-839.61,0.00025273,120]
[344052955,1733250217172,-779.57,0.00025273,120]
[344052956,1733250217226,-854.95,0.00025273,30]
[344052957,1733250217281,-500.0,0.00025273,120]
[344052958,1733250217335,-500.0,0.00025273,120]
[344052959,1733250217389,-1404.21,0.00025273,120]
[344052960,1733250217446,-500.0,0.00025273,120]
[344052961,1733250217499,-784.15,0.00025273,120]
[344052962,1733250217553,-3876.85,0.00025273,120]
[344052963,1733250217607,-1170.97,0.00025273,120]
[344052964,1733250217661,-1902.04,0.00025273,120]
[344052965,1733250217720,-500.0,0.00025273,120]
[344052966,1733250217771,-500.0,0.00025273,120]
[344052967,1733250217825,-959.15,0.00025273,120]
[344052968,1733250217876,-500.0,0.00025273,120]
[344052969,1733250217932,-500.0,0.00025273,120]
[344052970,1733250217985,-836.14,0.00025273,120]
[344052971,1733250218038,-1377.0,0.00025273,120]
[344052972,1733250218092,-870.97,0.00025273,120]
[344052974,1733250218149,-838.0,0.00025273,120]
[344052976,1733250218204,-500.0,0.00025273,120]
[344052977,1733250218258,-500.0,0.00025273,120]
[344052978,1733250218310,-639.74483448,0.00025273,120]
[344052979,1733250218361,-1029.51,0.00025273,120]
[344052980,1733250218415,-500.0,0.00025273,120]
[344052981,1733250218467,-963.68,0.00025273,120]
[344052982,1733250218520,-500.0,0.00025273,120]
[344052983,1733250218572,-764.39,0.00025273,120]
[344052984,1733250218625,-1205.78,0.00025273,120]
[344052985,1733250218674,-1258.39,0.00025273,120]
[344052986,1733250218725,-1940.44,0.00025273,120]
[344052987,1733250218774,-5348.47,0.00025273,60]
[344052988,1733250218826,-2050.09,0.00025273,120]
[344052989,1733250218875,-500.0,0.00025273,120]
[344052990,1733250218929,-1104.22,0.00025273,120]
[344052991,1733250218979,-1053.09,0.00025273,120]
[344052992,1733250219031,-838.11,0.00025273,120]
[344052993,1733250219083,-500.0,0.00025273,120]
[344052994,1733250219134,-500.0,0.00025273,120]
[344052995,1733250219184,-956.12,0.00025273,120]
[344052996,1733250219235,-644.06,0.00025273,120]
[344052997,1733250219285,-2026.93,0.00025273,120]
[344052998,1733250219336,-500.0,0.00025273,120]
[344052999,1733250219386,-500.0,0.00025273,120]
[344053000,1733250219442,-2729.51,0.00025273,120]
[344053001,1733250219496,-2085.95,0.00025273,120]
[344053002,1733250219549,-10214.11,0.00025273,120]
[344053003,1733250219599,-790.17,0.00025273,120]
[344053004,1733250219650,-500.0,0.00025273,120]
[344053005,1733250219705,-500.0,0.00025273,120]
[344053006,1733250219760,-1145.3,0.00025273,120]
[344053007,1733250219813,-500.0,0.00025273,120]
[344053008,1733250219868,-500.0,0.00025273,120]
[344053009,1733250219921,-500.0,0.00025273,60]
[344053010,1733250219985,-1677.95,0.00025273,120]
[344053011,1733250220038,-21071.98,0.00025273,120]
[344053012,1733250220092,-1110.47,0.00025273,120]
[344053013,1733250220145,-792.09,0.00025273,120]
[344053014,1733250220198,-4158.1,0.00025273,120]
[344053015,1733250220251,-536.48,0.00025273,120]
[344053016,1733250220301,-500.0,0.00025273,120]
[344053017,1733250220353,-663.86,0.00025273,120]
[344053018,1733250220405,-500.0,0.00025273,120]
[344053019,1733250220458,-1642.8,0.00025273,120]
[344053020,1733250220509,-1124.18,0.00025273,120]
[344053021,1733250220560,-834.96,0.00025273,120]
[344053022,1733250220610,-1591.87,0.00025273,120]
[344053023,1733250220660,-500.0,0.00025273,120]
[344053024,1733250220710,-645.46,0.00025273,120]
[344053025,1733250220759,-2725.26,0.00025273,120]
[344053026,1733250220809,-1261.0,0.00025273,120]
[344053027,1733250220857,-500.0,0.00025273,120]
[344053028,1733250220913,-980.77,0.00025273,120]
[344053029,1733250220967,-1454.27,0.00025273,120]
[344053030,1733250221016,-674.63,0.00025273,120]
[344053031,1733250221064,-719.43,0.00025273,120]
[344053032,1733250221118,-1213.13,0.00025273,120]
[344053033,1733250221171,-570.28,0.00025273,120]
[344053034,1733250221223,-1655.62,0.00025273,120]
[344053035,1733250221274,-500.0,0.00025273,120]
[344053036,1733250221326,-500.0,0.00025273,120]
[344053037,1733250221692,-2593.48,0.00025273,120]
[344053038,1733250221744,-515.91,0.00025273,120]
[344053039,1733250221799,-993.33,0.00025273,120]
[344053040,1733250221852,-500.0,0.00025273,120]
[344053041,1733250221913,-1023.22,0.00025273,120]
[344053042,1733250221970,-500.0,0.00025273,120]
[344053043,1733250222022,-500.0,0.00025273,120]
[344053044,1733250222076,-8199.26,0.00025273,120]
[344053045,1733250222131,-695.07,0.00025273,120]
[344053046,1733250222190,-3574.45,0.00025273,120]
[344053047,1733250222244,-1048.26,0.00025273,120]
[344053048,1733250222297,-1816.59,0.00025273,120]
[344053049,1733250222350,-574.32,0.00025273,120]
[344053050,1733250222409,-500.0,0.00025273,120]
[344053051,1733250222463,-500.0,0.00025273,120]
[344053052,1733250222516,-500.0,0.00025273,120]
[344053053,1733250222568,-500.0,0.00025273,120]
[344053054,1733250222620,-500.0,0.00025273,120]
[344053055,1733250222675,-19254.73,0.00025273,120]
[344053056,1733250222727,-1474.93,0.00025273,120]
[344053057,1733250222779,-2310.14,0.00025273,120]
[344053058,1733250222830,-4805.36,0.00025273,120]
[344053059,1733250222881,-2082.06,0.00025273,120]
[344053060,1733250222933,-1113.02,0.00025273,120]
[344053061,1733250222985,-553.76,0.00025273,120]
[344053062,1733250223039,-574.23575137,0.00025273,120]
[344053063,1733250223091,-503.3,0.00025273,120]
[344053064,1733250223144,-500.0,0.00025273,120]
[344053065,1733250223199,-939.86,0.00025273,90]
[344053066,1733250223253,-1075.27,0.00025273,120]
[344053067,1733250223307,-500.0,0.00025273,120]
[344053068,1733250223360,-1513.98,0.00025273,120]
[344053069,1733250223413,-2256.38,0.00025273,120]
[344053070,1733250223467,-966.46,0.00025273,120]
[344053071,1733250223519,-500.0,0.00025273,120]
[344053072,1733250223571,-1764.81,0.00025273,120]
[344053073,1733250223625,-1222.32,0.00025273,120]
[344053074,1733250223682,-1835.5,0.00025273,120]
[344053075,1733250223736,-1692.81,0.00025273,120]
[344053076,1733250223787,-500.0,0.00025273,120]
[344053077,1733250223840,-950.5,0.00025273,120]
[344053078,1733250223894,-2070.34,0.00025273,120]
[344053079,1733250223952,-1869.21,0.00025273,120]
[344053080,1733250224012,-1383.85,0.00025273,120]
[344053081,1733250224070,-500.0,0.00025273,120]
[344053082,1733250224128,-701.87,0.00025273,120]
[344053083,1733250224183,-500.0,0.00025273,120]
[344053084,1733250224236,-903.33,0.00025273,120]
[344053085,1733250224290,-560.8,0.00025273,120]
[344053086,1733250224343,-3224.32,0.00025273,120]
[344053087,1733250224397,-876.3,0.00025273,120]
[344053088,1733250224456,-1051.96,0.00025273,120]
[344053089,1733250224510,-889.68,0.00025273,120]
[344053090,1733250224562,-2155.3,0.00025273,120]
[344053091,1733250224616,-1909.89,0.00025273,120]
[344053092,1733250224668,-643.07,0.00025273,120]
[344053093,1733250224720,-572.16,0.00025273,120]
[344053094,1733250224772,-500.0,0.00025273,120]
[344053095,1733250224823,-500.0,0.00025273,120]
[344053096,1733250224877,-500.0,0.00025273,120]
[344053097,1733250224929,-898.33,0.00025273,120]
[344053098,1733250224982,-3250.28,0.00025273,120]
[344053099,1733250225034,-500.0,0.00025273,120]
[344053100,1733250225088,-1669.15,0.00025273,120]
[344053101,1733250225140,-754.05,0.00025273,120]
[344053102,1733250225197,-623.08,0.00025273,120]
[344053103,1733250225250,-2393.24,0.00025273,120]
[344053104,1733250225302,-520.86,0.00025273,120]
[344053105,1733250225354,-2101.6,0.00025273,120]
[344053106,1733250225407,-1196.71,0.00025273,120]
[344053107,1733250225461,-962.94,0.00025273,120]
[344053108,1733250225513,-992.96,0.00025273,120]
[344053109,1733250225570,-2260.57,0.00025273,120]
[344053110,1733250225621,-527.97,0.00025273,120]
[344053111,1733250225673,-642.57,0.00025273,120]
[344053112,1733250225726,-500.0,0.00025273,120]
[344053113,1733250225779,-1900.92,0.00025273,120]
[344053114,1733250225830,-1095.32,0.00025273,120]
[344053115,1733250225883,-500.0,0.00025273,120]
[344053116,1733250225933,-5551.36,0.00025273,120]
[344053117,1733250225985,-500.0,0.00025273,120]
[344053118,1733250226035,-500.0,0.00025273,120]
[344053119,1733250226086,-500.0,0.00025273,120]
[344053120,1733250226136,-500.0,0.00025273,120]
[344053121,1733250226188,-500.0,0.00025273,120]
[344053122,1733250226238,-2031.77,0.00025273,120]
[344053123,1733250226289,-2813.57,0.00025273,120]
[344053124,1733250226340,-3249.1,0.00025273,120]
[344053125,1733250226393,-828.96,0.00025273,120]
[344053126,1733250226447,-768.74,0.00025273,120]
[344053127,1733250226500,-500.0,0.00025273,120]
[344053128,1733250226556,-527.92,0.00025273,120]
[344053129,1733250226609,-1272.87,0.00025273,120]
[344053130,1733250226664,-1215.43,0.00025273,120]
[344053131,1733250226989,-2123.04,0.00025273,120]
[344053132,1733250227044,-500.0,0.00025273,120]
[344053133,1733250227098,-2128.54,0.00025273,120]
[344053134,1733250227154,-500.0,0.00025273,120]
[344053135,1733250227208,-1306.48,0.00025273,120]
[344053136,1733250227260,-1670.49,0.00025273,120]
[344053137,1733250227313,-1588.2,0.00025273,120]
[344053138,1733250227366,-1208.93,0.00025273,120]
[344053139,1733250227418,-500.0,0.00025273,120]
[344053140,1733250227470,-13075.25,0.00025273,120]
[344053141,1733250227523,-500.0,0.00025273,120]
[344053142,1733250227577,-500.0,0.00025273,120]
[344053143,1733250227629,-2651.03,0.00025273,120]
[344053144,1733250227678,-547.46,0.00025273,120]
[344053145,1733250227728,-3863.63,0.00025273,120]
[344053146,1733250227779,-607.79,0.00025273,120]
[344053147,1733250227829,-1199.13,0.00025273,120]
[344053148,1733250227880,-894.29,0.00025273,120]
[344053149,1733250227931,-3778.56,0.00025273,120]
[344053150,1733250227981,-500.0,0.00025273,120]
[344053151,1733250228034,-766.88,0.00025273,120]
[344053152,1733250228086,-500.0,0.00025273,120]
[344053153,1733250228138,-502.8,0.00025273,120]
[344053154,1733250228188,-500.0,0.00025273,120]
[344053155,1733250228241,-1824.08,0.00025273,120]
[344053156,1733250228293,-2408.07,0.00025273,120]
[344053157,1733250228344,-997.48,0.00025273,120]
[344053158,1733250228400,-903.29,0.00025273,120]
[344053159,1733250228454,-2173.46,0.00025273,120]
[344053160,1733250228507,-500.0,0.00025273,120]
[344053161,1733250228557,-954.9,0.00025273,120]
[344053162,1733250228609,-500.0,0.00025273,120]
[344053163,1733250228667,-500.0,0.00025273,120]
[344053164,1733250228717,-500.0,0.00025273,120]
[344053165,1733250228765,-520.27,0.00025273,30]
[344053166,1733250228814,-500.0,0.00025273,120]
[344053167,1733250228862,-500.0,0.00025273,120]
[344053168,1733250228916,-3796.53,0.00025273,120]
[344053169,1733250228969,-1093.92,0.00025273,120]
[344053170,1733250229018,-500.0,0.00025273,120]
[344053171,1733250229065,-3503.39,0.00025273,120]
[344053172,1733250229115,-1925.24,0.00025273,120]
[344053173,1733250229164,-2164.81,0.00025273,120]
[344053174,1733250229213,-500.0,0.00025273,120]
[344053175,1733250229270,-983.94,0.00025273,120]
[344053176,1733250229321,-500.0,0.00025273,120]
[344053177,1733250229374,-500.0,0.00025273,120]
[344053178,1733250229428,-2075.5,0.00025273,120]
[344053179,1733250229480,-500.0,0.00025273,120]
[344053180,1733250229531,-1787.44,0.00025273,120]
[344053181,1733250229583,-1303.05,0.00025273,120]
[344053182,1733250229634,-893.13,0.00025273,120]
[344053183,1733250229688,-500.0,0.00025273,120]
[344053184,1733250229740,-500.0,0.00025273,120]
[344053185,1733250229792,-1032.78,0.00025273,120]
[344053186,1733250229843,-1714.57,0.00025273,120]
[344053187,1733250229895,-659.08,0.00025273,120]
[344053188,1733250229948,-2716.53,0.00025273,120]
[344053189,1733250229999,-1654.32,0.00025273,120]
[344053190,1733250230050,-500.0,0.00025273,120]
[344053191,1733250230102,-2390.03,0.00025273,120]
[344053192,1733250230152,-500.0,0.00025273,120]
[344053193,1733250230209,-846.16,0.00025273,120]
[344053194,1733250230261,-1000.47,0.00025273,120]
[344053195,1733250230312,-6152.88,0.00025273,120]
[344053196,1733250230367,-2798.77,0.00025273,120]
[344053197,1733250230417,-846.75,0.00025273,120]
[344053198,1733250230469,-500.0,0.00025273,120]
[344053199,1733250230520,-500.0,0.00025273,120]
[344053200,1733250230569,-500.0,0.00025273,120]
[344053201,1733250230621,-569.48,0.00025273,120]
[344053202,1733250230672,-1771.08,0.00025273,120]
[344053203,1733250230725,-2816.66,0.00025273,120]
[344053204,1733250230774,-1291.97,0.00025273,120]
[344053205,1733250230827,-5777.4,0.00025273,120]
[344053206,1733250230880,-513.58,0.00025273,120]
[344053207,1733250230932,-500.0,0.00025273,120]
[344053208,1733250230986,-672.88,0.00025273,120]
[344053209,1733250231037,-500.0,0.00025273,120]
[344053210,1733250231088,-500.0,0.00025273,120]
[344053211,1733250231139,-1049.55,0.00025273,120]
[344053212,1733250231190,-500.0,0.00025273,120]
[344053213,1733250231239,-5313.63,0.00025273,120]
[344053214,1733250231291,-236.91636224,0.00025273,120]
[344053215,1733250231341,-500.0,0.00025273,120]
[344053216,1733250231391,-1014.23,0.00025273,120]
[344053217,1733250231442,-653.41,0.00025273,120]
[344053218,1733250231492,-500.0,0.00025273,120]
[344053219,1733250231542,-1924.64,0.00025273,120]
[344053220,1733250231591,-510.46,0.00025273,120]
[344053221,1733250231642,-3377.89,0.00025273,120]
[344053222,1733250231691,-783.55,0.00025273,120]
[344053223,1733250231749,-500.0,0.00025273,120]
[344053224,1733250231803,-500.0,0.00025273,120]
[344053225,1733250232161,-1857.89,0.00025273,120]
[344053226,1733250232218,-942.09,0.00025273,120]
[344053227,1733250232271,-8080.73,0.00025273,120]
[344053228,1733250232325,-500.0,0.00025273,120]
[344053229,1733250232378,-500.0,0.00025273,120]
[344053230,1733250232433,-1238.7,0.00025273,120]
[344053231,1733250232484,-1557.17,0.00025273,120]
[344053232,1733250232538,-1048.08,0.00025273,120]
[344053233,1733250232590,-1194.15,0.00025273,120]
[344053234,1733250232643,-500.0,0.00025273,120]
[344053235,1733250232697,-500.0,0.00025273,120]
[344053236,1733250232748,-500.0,0.00025273,120]
[344053237,1733250232798,-1252.18,0.00025273,120]
[344053238,1733250232848,-500.0,0.00025273,120]
[344053239,1733250232896,-2550.0,0.00025273,120]
[344053240,1733250232947,-1315.4,0.00025273,120]
[344053241,1733250232998,-1671.1,0.00025273,120]
[344053242,1733250233050,-500.0,0.00025273,120]
[344053243,1733250233100,-1920.8,0.00025273,120]
[344053244,1733250233150,-500.0,0.00025273,120]
[344053245,1733250233201,-1616.29,0.00025273,120]
[344053246,1733250233249,-624.64,0.00025273,120]
[344053247,1733250233301,-664.79,0.00025273,120]
[344053248,1733250233351,-500.0,0.00025273,120]
[344053249,1733250233402,-9473.91,0.00025273,120]
[344053250,1733250233455,-888.37,0.00025273,120]
[344053251,1733250233505,-934.14,0.00025273,120]
[344053252,1733250233555,-537.54454756,0.00025273,120]
[344053253,1733250233604,-500.0,0.00025273,120]
[344053254,1733250233654,-5470.04,0.00025273,120]
[344053255,1733250233706,-500.0,0.00025273,120]
[344053256,1733250233754,-500.0,0.00025273,120]
[344053257,1733250233804,-500.0,0.00025273,120]
[344053258,1733250233854,-2177.61,0.00025273,120]
[344053259,1733250233902,-932.69,0.00025273,120]
[344053260,1733250233954,-500.0,0.00025273,120]
[344053261,1733250234004,-1507.06,0.00025273,120]
[344053262,1733250234055,-1035.78,0.00025273,120]
[344053263,1733250234103,-500.0,0.00025273,120]
[344053264,1733250234151,-1162.44,0.00025273,120]